bitfinex-derivatives/quotes_SOLF0:USTF0_20250117
["timestamp","ask_amount","ask_price","bid_price","bid_amount"]
[1737122432930,3.2029,220.39,220.32,10.90025449]
[1737122433130,3.2029,220.39,220.29,10.90025449]
[1737122433632,4.5393,220.34,220.29,15.44015449]
[1737122434333,4.5394,220.33,220.29,4.5399]
[1737122436133,10.90025449,220.37,220.23,10.90025449]
[1737122436433,10.90025449,220.37,220.23,15.86025449]
[1737122436934,4.5401,220.3,220.25,4.5408]
[1737122437727,4.5392,220.34,220.25,4.5408]
[1737122437931,10.90025449,220.37,220.25,4.5408]
[1737122438132,10.90025449,220.37,220.26,4.5407]
[1737122438333,4.5401,220.29,220.23,10.90025449]
[1737122438935,4.5401,220.29,220.25,4.5407]
[1737122439136,4.5393,220.33,220.23,10.90025449]
[1737122439435,10.90025449,220.37,220.23,10.90025449]
[1737122440035,10.90025449,220.37,220.26,4.5407]
[1737122440339,4.5409,220.25,220.2,4.5418]
[1737122441032,10.90025449,220.28,220.16,6.25334606]
[1737122441233,10.90025449,220.25,220.16,6.25334606]
[1737122441438,10.90025449,220.22,220.16,6.25334606]
[1737122441638,4.543,220.16,220.11,6.25334606]
[1737122441839,10.90025449,220.19,220.11,6.25334606]
[1737122442234,4.5429,220.16,220.11,6.25334606]
[1737122442437,1.6083,220.29,220.08,10.90025449]
[1737122442438,10.90025449,220.22,220.08,17.15360055]
[1737122442733,4.5422,220.19,220.13,4.5434]
[1737122443233,4.5422,220.19,220.11,10.90025449]
[1737122443439,4.5422,220.19,220.13,4.5434]
[1737122443636,4.5422,220.19,220.09,17.4359912]
[1737122443832,4.5419,220.21,220.09,17.4359912]
[1737122444140,17.4359912,220.26,220.09,17.4359912]
[1737122444344,4.5411,220.24,220.13,17.4359912]
[1737122444644,194.0,220.41,220.22,17.4359912]
[1737122444833,4.5389,220.35,220.23,4.96]
[1737122445035,199.0625,220.41,220.26,17.4359912]
[1737122445340,4.5385,220.37,220.26,17.4359912]
[1737122445735,4.5385,220.37,220.29,4.54]
[1737122445944,4.5385,220.37,220.26,17.4359912]
[1737122446632,5.0625,220.41,220.26,17.4359912]
[1737122447033,4.5381,220.39,220.32,4.5395]
[1737122447842,4.5385,220.37,220.3,4.5397]
[1737122448042,22.4984912,220.41,220.25,1.5996]
[1737122448434,4.5386,220.37,220.27,4.5405]
[1737122448642,22.4984912,220.41,220.27,4.5405]
[1737122448838,17.4359912,220.37,220.24,4.96]
[1737122449032,17.4359912,220.37,220.21,30.16296655]
[1737122449233,17.4359912,220.33,220.21,30.16296655]
[1737122449436,17.4359912,220.33,220.21,4.96]
[1737122449736,4.5403,220.28,220.21,9.5016]
[1737122449938,5.0625,220.41,220.22,17.4359912]
[1737122450142,4.5395,220.32,220.22,17.4359912]
[1737122450842,4.5388,220.36,220.29,4.5401]
[1737122451042,5.0625,220.41,220.26,17.4359912]
[1737122451545,4.538,220.4,220.34,4.539]
[1737122451935,5.0625,220.41,220.34,4.539]
[1737122452140,4.5381,220.39,220.34,4.539]
[1737122452445,17.4359912,220.39,220.3,4.96]
[1737122453140,4.5391,220.34,220.3,9.4999]
[1737122453645,17.4359912,220.39,220.3,9.4999]
[1737122454447,5.0625,220.41,220.32,4.5394]
[1737122454645,5.0625,220.41,220.3,4.96]
[1737122455643,4.5383,220.38,220.33,4.5393]
[1737122455843,5.0625,220.41,220.3,4.96]
[1737122456243,4.5376,220.39,220.34,4.5385]
[1737122456947,5.0625,220.41,220.3,4.96]
[1737122457252,4.5381,220.37,220.32,4.5389]
[1737122457650,194.0,220.52,220.3,4.96]
[1737122457853,22.6362912,220.5,220.33,17.4359912]
[1737122458041,5.2003,220.5,220.33,17.4359912]
[1737122458350,5.2003,220.5,220.46,4.5362]
[1737122458552,5.2003,220.5,220.41,4.96]
[1737122458951,4.5356,220.49,220.43,4.5366]
[1737122459151,4.5356,220.49,220.41,4.96]
[1737122459355,1.7023,220.5,220.41,4.96]
[1737122459549,17.4359912,220.55,220.41,4.96]
[1737122459750,4.535,220.53,220.46,4.536]
[1737122459954,17.4359912,220.55,220.46,4.536]
[1737122460356,4.5352,220.51,220.45,4.5364]
[1737122460651,17.4359912,220.55,220.41,4.96]
[1737122460852,17.4359912,220.48,220.41,4.96]
[1737122461750,1.6732,220.47,220.41,4.96]
[1737122461951,4.5376,220.39,220.34,4.5387]
[1737122462147,17.4359912,220.44,220.32,4.96]
[1737122462778,4.5373,220.41,220.32,4.96]
[1737122463149,4.5373,220.41,220.36,4.5383]
[1737122463760,4.5373,220.41,220.28,17.4359912]
[1737122463761,194.0,220.38,220.24,25.20296655]
[1737122463960,17.4359912,220.36,220.24,25.20296655]
[1737122464256,4.5403,220.26,220.24,15.67046655]
[1737122464461,17.4359912,220.28,220.22,7.91929379]
[1737122464659,17.4359912,220.23,220.14,18.83803391]
[1737122464854,17.4359912,220.27,220.14,18.83803391]
[1737122465361,4.5407,220.25,220.16,4.5423]
[1737122465963,21.9762912,220.27,220.1,22.5927912]
[1737122466155,17.4359912,220.27,220.11,4.96]
[1737122466354,17.4359912,220.23,220.11,4.96]
[1737122467163,17.4359912,220.23,220.1,3.4867]
[1737122467367,17.4359912,220.19,220.03,3.3835]
[1737122468664,4.5427,220.16,220.09,4.5439]
[1737122468962,17.4359912,220.22,220.03,3.3835]
[1737122469363,17.4359912,220.22,220.04,17.4359912]
[1737122469861,4.5424,220.18,220.1,4.5439]
[1737122470568,4.542,220.2,220.04,17.4359912]
[1737122470762,17.4359912,220.22,220.04,17.4359912]
[1737122472363,17.4359912,220.26,220.08,17.4359912]
[1737122472761,4.5412,220.23,220.08,17.4359912]
[1737122473671,194.0,220.28,220.12,17.4359912]
[1737122473876,17.4359912,220.22,220.13,4.96]
[1737122474072,4.5421,220.19,220.13,9.5031]
[1737122474273,4.5421,220.19,220.13,4.96]
[1737122474575,17.4359912,220.22,220.13,4.96]
[1737122474969,4.5419,220.2,220.14,4.543]
[1737122476378,4.5419,220.2,220.15,4.5428]
[1737122477771,17.4359912,220.18,220.09,4.5439]
[1737122477976,17.4359912,220.18,220.04,4.96]
[1737122478272,17.4359912,220.18,220.05,1.6475]
[1737122478474,4.5429,220.15,220.11,4.5437]
[1737122478673,17.4359912,220.18,220.05,1.6475]
[1737122478874,4.5425,220.17,220.12,4.5434]
[1737122479277,17.4359912,220.22,220.05,1.6475]
[1737122479475,4.5422,220.19,220.13,4.5432]
[1737122479679,17.4359912,220.22,220.13,4.5432]
[1737122479880,17.4359912,220.22,220.05,1.6475]
[1737122480082,4.5422,220.19,220.05,1.6475]
[1737122480275,17.4359912,220.22,220.05,1.6475]
[1737122480581,4.5426,220.17,220.12,4.5434]
[1737122480983,4.5426,220.17,220.05,1.6475]
[1737122481682,4.5426,220.17,220.08,4.5442]
[1737122481885,4.5426,220.17,220.05,1.6475]
[1737122482476,17.4359912,220.18,220.05,1.6475]
[1737122482676,17.4359912,220.14,220.05,1.6475]
[1737122483681,194.0,220.21,220.05,1.6475]
[1737122483987,4.5419,220.2,220.15,4.5428]
[1737122484186,17.4359912,220.22,220.15,4.5428]
[1737122484387,4.5419,220.2,220.15,4.5428]
[1737122484885,17.4359912,220.22,220.15,4.5428]
[1737122485679,17.4359912,220.22,220.05,1.6475]
[1737122486386,4.5423,220.18,220.15,4.5428]
[1737122486588,17.4359912,220.22,220.05,1.6475]
[1737122487088,4.5428,220.16,220.1,4.5439]
[1737122487289,4.5428,220.16,220.05,1.6475]
[1737122487980,4.5424,220.18,220.05,1.6475]
[1737122488488,17.4359912,220.22,220.05,1.6475]
[1737122488689,4.5421,220.19,220.14,4.5429]
[1737122489390,4.5421,220.19,220.15,4.5428]
[1737122489988,4.5423,220.18,220.15,4.5428]
[1737122491394,17.4359912,220.22,220.15,4.5428]
[1737122491589,17.4359912,220.22,220.05,1.6475]
[1737122492992,4.5422,220.18,220.05,1.6475]
[1737122493390,17.4359912,220.22,220.13,4.5431]
[1737122493595,17.4359912,220.22,220.05,1.6475]
[1737122493596,17.4359912,220.18,220.05,1.6475]
[1737122494095,4.5434,220.13,220.05,1.6475]
[1737122494291,17.4359912,220.18,220.05,1.6475]
[1737122494492,17.4359912,220.18,220.08,4.5441]
[1737122494693,17.4359912,220.18,220.05,1.6475]
[1737122495096,17.4359912,220.18,220.07,4.5445]
[1737122495294,4.5436,220.12,220.05,1.6475]
[1737122495497,17.4359912,220.18,220.07,4.5443]
[1737122496197,4.5437,220.11,220.07,4.5443]
[1737122496800,4.5436,220.12,220.08,4.5443]
[1737122497001,4.5436,220.12,220.03,3.3835]
[1737122497802,4.5433,220.13,220.09,4.5439]
[1737122498099,194.0,220.21,220.03,1.729]
[1737122498298,4.5425,220.17,220.09,4.5441]
[1737122498500,194.0,220.21,220.04,1.6044]
[1737122499001,4.5433,220.13,220.09,4.5439]
[1737122499603,4.5433,220.13,220.1,4.5438]
[1737122500604,4.5431,220.14,220.1,4.5438]
[1737122501200,4.5429,220.15,220.11,4.5436]
[1737122505206,4.5427,220.16,220.12,4.5434]
[1737122506404,4.5427,220.16,220.13,4.5432]
[1737122506605,4.5427,220.16,220.04,1.6044]
[1737122509402,4.5427,220.16,220.04,12.50815441]
[1737122509807,15.44625441,220.17,220.13,4.5433]
[1737122512303,15.44625441,220.17,220.04,12.50815441]
[1737122512506,15.44625441,220.17,220.14,4.543]
[1737122512708,10.90375441,220.33,220.1,10.90375441]
[1737122512709,4.5416,220.22,220.1,10.90375441]
[1737122513009,4.5416,220.22,220.18,4.5422]
[1737122515009,4.5417,220.21,220.18,4.5422]
[1737122515209,10.90375441,220.2,220.11,6.6706]
[1737122515912,10.90375441,220.17,220.06,4.96]
[1737122516107,10.90375441,220.2,220.06,6.6683]
[1737122516407,4.5427,220.16,220.1,4.5438]
[1737122516610,10.90375441,220.2,220.06,6.6683]
[1737122516812,10.90375441,220.17,220.06,6.6683]
[1737122517209,4.543,220.15,220.06,6.6683]
[1737122517711,4.543,220.15,220.11,4.5435]
[1737122518814,4.543,220.15,220.06,6.6683]
[1737122519316,4.543,220.15,220.11,4.5435]
[1737122520715,4.543,220.15,220.12,4.5434]
[1737122520915,4.5431,220.14,220.06,6.6683]
[1737122521115,10.90375441,220.17,220.06,1.7083]
[1737122521616,4.5434,220.13,220.09,4.5439]
[1737122521816,10.90375441,220.22,220.07,10.90375441]
[1737122522021,4.5424,220.18,220.14,4.5429]
[1737122522217,4.5424,220.18,220.06,1.7083]
[1737122522218,204.90375441,220.29,220.13,10.90375441]
[1737122522511,204.90375441,220.29,220.14,1.6552]
[1737122522918,4.5411,220.24,220.19,4.5419]
[1737122523116,204.90375441,220.29,220.19,4.5419]
[1737122523614,204.90375441,220.29,220.14,6.6152]
[1737122524017,10.90375441,220.19,220.08,4.96]
[1737122524616,4.5424,220.18,220.13,4.5432]
[1737122524813,10.90375441,220.19,220.08,4.96]
[1737122525819,4.5427,220.16,220.12,4.5433]
[1737122526423,10.90375441,220.16,220.08,4.96]
[1737122526620,4.5433,220.13,220.08,4.5441]
[1737122526922,4.5433,220.13,220.07,1.6668]
[1737122527617,17.44792298,220.19,220.07,1.6668]
[1737122528720,4.5429,220.15,220.11,4.5437]
[1737122529417,17.44792298,220.19,220.07,1.6668]
[1737122529619,4.5431,220.14,220.1,4.5439]
[1737122532722,4.5431,220.14,220.06,1.7083]
[1737122532919,4.5431,220.14,220.11,4.5437]
[1737122534320,17.44792298,220.23,220.15,4.5428]
[1737122534623,194.0,220.25,220.12,4.96]
[1737122535221,4.5418,220.2,220.16,4.5426]
[1737122536619,4.5418,220.2,220.12,4.96]
[1737122537115,194.0,220.25,220.12,4.96]
[1737122537320,4.5426,220.17,220.14,4.543]
[1737122537714,17.44792298,220.24,220.12,4.96]
[1737122538319,17.44792298,220.24,220.13,4.5432]
[1737122538717,17.44792298,220.24,220.18,4.5421]
[1737122538921,194.0,220.25,220.18,4.5421]
[1737122539218,194.0,220.25,220.13,17.44792298]
[1737122539420,194.0,220.25,220.17,17.44792298]
[1737122539623,211.44792298,220.36,220.18,1.7166]
[1737122539816,4.5399,220.3,220.26,4.5404]
[1737122540022,211.44792298,220.36,220.21,4.96]
[1737122540422,8.21422111,220.35,220.22,4.5414]
[1737122540623,0.6743581,220.34,220.22,4.5414]
[1737122541223,4.5403,220.28,220.23,4.5411]
[1737122541723,4.5407,220.26,220.19,4.542]
[1737122541920,194.0,220.31,220.14,1.7554]
[1737122542325,4.5406,220.26,220.21,4.5414]
[1737122542527,4.5406,220.26,220.14,1.7554]
[1737122542829,194.0,220.31,220.14,1.7554]
[1737122543028,4.5408,220.25,220.14,1.7554]
[1737122543527,4.5412,220.23,220.14,1.7554]
[1737122545329,4.5402,220.28,220.23,4.541]
[1737122545525,17.44792298,220.37,220.14,1.7554]
[1737122545824,0.67413017,220.36,220.14,1.7554]
[1737122546035,194.0,220.4,220.24,17.44792298]
[1737122546324,194.0,220.4,220.25,10.1297]
[1737122546525,4.5386,220.36,220.32,4.5392]
[1737122546929,194.0,220.4,220.32,4.5392]
[1737122547126,4.5387,220.35,220.31,4.5394]
[1737122547828,4.5384,220.37,220.32,4.5391]
[1737122549027,4.5384,220.37,220.33,4.539]
[1737122549229,17.44792298,220.45,220.28,17.44792298]
[1737122549427,10.87683592,220.45,220.32,10.87683592]
[1737122550033,4.5376,220.4,220.32,10.87683592]
[1737122550427,10.87683592,220.42,220.3,10.87683592]
[1737122551335,4.5379,220.39,220.35,4.5387]
[1737122552845,4.5374,220.41,220.37,4.5382]
[1737122553143,194.0,220.47,220.33,10.87683592]
[1737122553144,10.87683592,220.46,220.33,10.87683592]
[1737122553441,4.5372,220.42,220.36,4.5383]
[1737122553640,4.5372,220.42,220.33,10.87683592]
[1737122554043,4.5368,220.45,220.33,10.87683592]
[1737122554241,10.87683592,220.46,220.34,8.1852]
[1737122554545,10.87683592,220.55,220.34,8.1852]
[1737122554546,10.87683592,220.49,220.42,4.537]
[1737122554742,4.5364,220.46,220.42,4.537]
[1737122554944,10.87683592,220.49,220.36,10.87683592]
[1737122555146,10.87683592,220.49,220.34,9.8595]
[1737122555446,10.87683592,220.49,220.39,4.5378]
[1737122556145,10.87683592,220.49,220.34,9.8595]
[1737122556346,10.87683592,220.49,220.4,4.5376]
[1737122557444,4.535,220.53,220.48,4.5359]
[1737122557748,10.87683592,220.56,220.42,10.87683592]
[1737122557949,10.87683592,220.56,220.43,8.4206]
[1737122558346,4.5354,220.51,220.47,4.5362]
[1737122558540,14.35877498,220.59,220.45,10.87683592]
[1737122558744,4.5347,220.55,220.51,4.5353]
[1737122559348,4.5348,220.54,220.45,10.87683592]
[1737122560049,4.5343,220.57,220.45,10.87683592]
[1737122560349,10.87683592,220.62,220.48,10.87683592]
[1737122560544,4.5335,220.61,220.56,4.5343]
[1737122560749,10.87683592,220.65,220.52,4.94]
[1737122561151,10.87683592,220.65,220.53,3.322]
[1737122561446,10.87683592,220.65,220.57,4.534]
[1737122561447,4.5331,220.63,220.57,4.534]
[1737122561750,10.87683592,220.65,220.53,3.322]
[1737122562742,4.5333,220.61,220.56,4.5343]
[1737122562948,4.5333,220.61,220.53,3.322]
[1737122563852,4.5333,220.61,220.55,4.5343]
[1737122564348,4.5336,220.6,220.55,4.5343]
[1737122565252,4.5331,220.62,220.54,10.87683592]
[1737122565554,10.87683592,220.75,220.6,10.87683592]
[1737122565851,10.87683592,220.75,220.63,10.87683592]
[1737122566447,4.5313,220.71,220.66,4.5322]
[1737122566747,10.87683592,220.75,220.63,10.87683592]
[1737122567152,10.87683592,220.75,220.64,1.7283]
[1737122567351,17.35737131,220.77,220.64,1.7283]
[1737122567752,4.5321,220.67,220.64,1.7283]
[1737122567948,17.35737131,220.77,220.64,1.7283]
[1737122568346,4.531,220.73,220.64,1.7283]
[1737122568555,17.35737131,220.81,220.65,3.3588]
[1737122569359,4.5302,220.77,220.67,17.35737131]
[1737122569656,17.35737131,220.85,220.67,17.35737131]
[1737122570258,4.5306,220.75,220.7,4.5313]
[1737122570453,17.35737131,220.81,220.65,3.3588]
[1737122570651,17.35737131,220.77,220.65,1.6714]
[1737122570851,17.35737131,220.73,220.59,4.94]
[1737122571258,4.5328,220.64,220.59,4.94]
[1737122572458,4.5325,220.66,220.6,4.5335]
[1737122572656,17.35737131,220.73,220.6,4.5335]
[1737122573359,17.35737131,220.73,220.59,4.94]
[1737122573661,17.35737131,220.69,220.52,8.2378]
[1737122575062,4.5335,220.6,220.55,4.5343]
[1737122575261,17.35737131,220.69,220.55,4.5343]
[1737122576356,4.5334,220.6,220.55,4.5343]
[1737122576763,17.35737131,220.65,220.52,8.2378]
[1737122576963,4.5339,220.6,220.54,4.5348]
[1737122577160,4.5339,220.6,220.52,8.2378]
[1737122577862,4.5339,220.6,220.55,4.5347]
[1737122578660,4.5338,220.59,220.55,4.5347]
[1737122579258,4.5336,220.61,220.56,4.5344]
[1737122579460,17.35737131,220.67,220.56,4.5344]
[1737122580163,4.5338,220.6,220.56,4.5344]
[1737122580759,4.534,220.58,220.52,8.2378]
[1737122581066,17.35737131,220.67,220.52,8.2378]
[1737122581265,4.5331,220.63,220.55,4.5346]
[1737122581461,17.35737131,220.67,220.52,8.2378]
[1737122582060,17.35737131,220.67,220.56,4.5344]
[1737122582361,17.35737131,220.67,220.52,8.2378]
[1737122582566,4.5339,220.59,220.55,4.5346]
[1737122583366,17.35737131,220.71,220.54,17.35737131]
[1737122583567,203.0616,220.74,220.54,17.35737131]
[1737122583767,4.5323,220.67,220.62,4.533]
[1737122583968,203.0616,220.74,220.62,4.533]
[1737122584771,194.0,220.73,220.57,4.5342]
[1737122584964,17.35737131,220.67,220.55,1.662]
[1737122586368,4.5335,220.61,220.57,4.5342]
[1737122586966,4.5329,220.64,220.56,4.5342]
[1737122587171,17.35737131,220.67,220.55,1.662]
[1737122587365,10.85561987,220.67,220.55,1.662]
[1737122587568,4.5332,220.63,220.59,4.5338]
[1737122587770,10.85561987,220.67,220.55,1.662]
[1737122588374,10.85561987,220.7,220.57,10.85561987]
[1737122588773,4.5325,220.66,220.62,4.533]
[1737122588974,10.85561987,220.7,220.57,10.85561987]
[1737122589669,10.85561987,220.7,220.63,4.5329]
[1737122589670,4.5323,220.67,220.63,4.5329]
[1737122589879,4.5323,220.67,220.57,10.85561987]
[1737122590376,4.5323,220.67,220.63,4.5328]
[1737122591271,204.85561987,220.76,220.61,4.94]
[1737122591475,10.85561987,220.76,220.63,10.85561987]
[1737122591975,10.85561987,220.76,220.64,1.6852]
[1737122592176,10.85561987,220.79,220.66,10.85561987]
[1737122592380,4.5303,220.76,220.72,4.531]
[1737122592573,10.85561987,220.79,220.66,10.85561987]
[1737122592975,4.5299,220.78,220.69,4.5316]
[1737122593177,4.5299,220.78,220.66,10.85561987]
[1737122593472,10.85561987,220.82,220.66,10.85561987]
[1737122593677,10.85561987,220.82,220.69,10.85561987]
[1737122593876,10.85561987,220.82,220.7,4.94]
[1737122594280,10.85561987,220.82,220.74,4.5307]
[1737122594480,10.85561987,220.79,220.7,4.94]
[1737122594675,10.85561987,220.76,220.64,1.6852]
[1737122594977,10.85561987,220.73,220.64,1.6852]
[1737122595171,10.85561987,220.7,220.62,7.93552931]
[1737122595371,4.5323,220.67,220.62,12.46852931]
[1737122595875,4.532,220.69,220.64,4.5326]
[1737122596280,4.532,220.69,220.62,1.6176]
[1737122596480,10.85561987,220.73,220.62,1.6176]
[1737122596681,10.85561987,220.76,220.62,1.6176]
[1737122596877,10.85561987,220.76,220.63,10.85561987]
[1737122597279,4.5309,220.74,220.66,4.5322]
[1737122597581,10.85561987,220.79,220.66,10.85561987]
[1737122597783,10.85561987,220.79,220.67,1.6081]
[1737122598779,4.5301,220.77,220.7,4.5314]
[1737122598977,10.85561987,220.79,220.67,1.6081]
[1737122599584,10.85561987,220.79,220.71,4.5312]
[1737122599885,10.85561987,220.79,220.67,1.6081]
[1737122600078,194.0,220.83,220.66,4.94]
[1737122600079,10.85561987,220.76,220.66,4.94]
[1737122600273,10.85561987,220.73,220.62,6.5576]
[1737122600473,10.85561987,220.73,220.63,4.533]
[1737122600474,4.5316,220.7,220.63,4.533]
[1737122600682,10.85561987,220.73,220.63,4.533]
[1737122600983,10.85561987,220.7,220.61,4.94]
[1737122601380,17.36778367,220.7,220.61,4.94]
[1737122601584,17.36778367,220.7,220.57,4.94]
[1737122601882,17.36778367,220.7,220.6,4.5336]
[1737122602887,4.5327,220.65,220.61,4.5334]
[1737122603591,17.36778367,220.66,220.55,1.6221]
[1737122604286,17.36778367,220.7,220.55,1.6221]
[1737122604488,194.0,220.73,220.56,17.36778367]
[1737122604791,4.5324,220.66,220.61,4.5334]
[1737122604990,17.36778367,220.7,220.55,1.6221]
[1737122605387,17.36778367,220.7,220.58,4.5338]
[1737122605987,17.36778367,220.66,220.55,1.6221]
[1737122607580,4.5338,220.59,220.52,4.94]
[1737122608784,4.5338,220.59,220.54,4.5348]
[1737122609386,4.5338,220.59,220.48,1.6655]
[1737122609592,4.5343,220.57,220.5,4.94]
[1737122609993,4.5343,220.57,220.52,4.5352]
[1737122610195,4.5343,220.57,220.5,4.94]
[1737122610397,4.5336,220.6,220.5,4.94]
[1737122610597,17.36778367,220.66,220.55,4.5345]
[1737122612097,4.5338,220.59,220.55,4.5345]
[1737122612594,17.36778367,220.66,220.5,4.94]
[1737122612797,4.5345,220.56,220.52,4.5352]
[1737122613686,4.5345,220.56,220.53,4.535]
[1737122616188,17.36778367,220.66,220.5,4.94]
[1737122616799,4.5333,220.62,220.54,4.5347]
[1737122616999,17.36778367,220.66,220.54,4.5347]
[1737122617295,4.5333,220.62,220.57,4.5342]
[1737122617496,17.36778367,220.66,220.57,4.5342]
[1737122618100,4.5335,220.61,220.57,4.5342]
[1737122618299,17.36778367,220.66,220.56,4.5344]
[1737122618594,17.36778367,220.66,220.5,4.94]
[1737122619102,194.0,220.71,220.55,17.36778367]
[1737122619501,4.5322,220.68,220.55,17.36778367]
[1737122619698,17.36778367,220.66,220.5,4.94]
[1737122619899,17.36778367,220.66,220.55,4.5347]
[1737122620303,17.36778367,220.66,220.5,6.5772]
[1737122620504,17.36778367,220.66,220.51,17.36778367]
[1737122620698,4.5329,220.65,220.51,17.36778367]
[1737122621001,4.5329,220.65,220.6,4.5335]
[1737122621397,10.85435081,220.68,220.55,10.85435081]
[1737122621593,10.85435081,220.68,220.63,4.5331]
[1737122621594,4.5323,220.67,220.63,4.5331]
[1737122621898,10.85435081,220.71,220.58,10.85435081]
[1737122622098,10.85435081,220.71,220.59,6.7458]
[1737122622300,10.85435081,220.68,220.59,8.383]
[1737122622499,10.85435081,220.65,220.59,4.94]
[1737122622895,4.5332,220.63,220.59,4.94]
[1737122623293,4.5332,220.63,220.59,4.5339]
[1737122623497,10.85435081,220.65,220.54,4.94]
[1737122623698,15.38705081,220.65,220.54,4.94]
[1737122625205,4.5327,220.65,220.54,4.94]
[1737122625399,4.5329,220.64,220.55,10.85435081]
[1737122625803,10.85435081,220.68,220.55,10.85435081]
[1737122626002,10.85435081,220.71,220.55,10.85435081]
[1737122626301,10.85435081,220.71,220.59,4.5338]
[1737122626504,4.5324,220.67,220.55,10.85435081]
[1737122627004,4.5324,220.67,220.63,4.5331]
[1737122628100,0.1264,220.75,220.54,22.30429452]
[1737122628302,194.0,220.76,220.58,17.36429452]
[1737122628303,4.5315,220.71,220.58,17.36429452]
[1737122628608,194.0,220.76,220.59,5.213]
[1737122629001,17.49379452,220.77,220.69,4.5318]
[1737122629303,17.49379452,220.77,220.63,4.94]
[1737122629504,4.5311,220.73,220.68,4.532]
[1737122629806,17.49379452,220.77,220.68,4.532]
[1737122630004,4.5316,220.71,220.63,4.94]
[1737122630402,17.49379452,220.77,220.63,4.94]
[1737122630603,17.36429452,220.77,220.63,4.94]
[1737122631204,17.36429452,220.81,220.72,4.5311]
[1737122631707,17.36429452,220.81,220.66,17.36429452]
[1737122631897,17.36429452,220.81,220.67,1.7066]
[1737122632306,21.89389452,220.81,220.76,4.5303]
[1737122632506,17.49519452,220.85,220.68,3.4649]
[1737122633401,4.5294,220.81,220.76,4.5303]
[1737122633910,17.49519452,220.85,220.74,4.5306]
[1737122634108,17.36429452,220.85,220.72,4.94]
[1737122634509,21.89289452,220.85,220.8,4.5296]
[1737122634702,17.36429452,220.85,220.8,4.5296]
[1737122635510,17.36429452,220.85,220.72,4.94]
[1737122636608,17.36429452,220.85,220.75,4.5306]
[1737122637609,4.5298,220.8,220.75,4.5306]
[1737122637809,17.36429452,220.8,220.72,9.4711]
[1737122638106,17.36429452,220.8,220.72,4.94]
[1737122638313,17.36429452,220.76,220.69,4.5318]
[1737122638513,17.36429452,220.76,220.62,4.94]
[1737122638812,4.5313,220.72,220.62,4.94]
[1737122639011,4.5313,220.72,220.67,4.5321]
[1737122639614,4.5313,220.72,220.68,4.532]
[1737122640607,4.531,220.74,220.69,4.5319]
[1737122640812,17.36429452,220.76,220.69,4.5319]
[1737122641012,17.36429452,220.76,220.63,4.94]
[1737122641213,21.89489452,220.76,220.72,4.5312]
[1737122641513,17.36429452,220.76,220.63,4.94]
[1737122641714,4.5299,220.79,220.71,4.5314]
[1737122641913,17.36429452,220.8,220.63,4.94]
[1737122642412,4.5305,220.76,220.63,4.94]
[1737122643308,194.0,220.84,220.66,17.36429452]
[1737122643309,211.36429452,220.84,220.66,17.36429452]
[1737122643516,17.36429452,220.84,220.67,1.7007]
[1737122644114,17.36429452,220.88,220.7,17.36429452]
[1737122644611,4.5286,220.85,220.8,4.5294]
[1737122644809,4.5286,220.85,220.68,3.4458]
[1737122644810,17.36429452,220.84,220.68,3.4458]
[1737122645715,4.5299,220.79,220.68,3.4458]
[1737122646009,17.36429452,220.84,220.68,3.4458]
[1737122646312,17.36429452,220.8,220.68,3.4458]
[1737122647113,4.5305,220.76,220.71,4.5313]
[1737122647513,4.5305,220.76,220.68,3.4458]
[1737122648408,4.5305,220.76,220.71,4.5313]
[1737122649413,4.5305,220.76,220.72,4.5311]
[1737122649816,4.5307,220.75,220.68,3.4458]
[1737122650317,4.5307,220.75,220.71,4.5313]
[1737122651216,4.5305,220.76,220.72,4.5312]
[1737122653219,10.84459208,220.78,220.68,3.4458]
[1737122653419,4.5302,220.77,220.73,4.5309]
[1737122653611,10.84459208,220.78,220.73,4.5309]